Workbook

Sheet Sheet1
C2: Possible SIO + CTC Baud Rates
D4: SIO Divisor
B5: Serial Clock | D5: 64 | E5: 32 | F5: 16
B6: 7372800 | D6: =$B6/D5 -> 115200 | E6: =$B6/E5 -> 230400 | F6: 460800
B7: Baud Rate | C7: 110 | D7: =D$6/$C7 -> 1047.272727 | E7: =E$6/$C7 -> 2094.545455 | F7: 4189.090909 | G7: CTC Divisor
C8: 300 | D8: =D$6/$C8 -> 384 | E8: 768 | F8: 1536
C9: 600 | D9: 192 | E9: 384 | F9: 768
C10: 1200 | D10: 96 | E10: 192 | F10: 384
C11: 2400 | D11: 48 | E11: 96 | F11: 192
C12: 4800 | D12: 24 | E12: 48 | F12: 96
C13: 9600 | D13: 12 | E13: 24 | F13: 48
C14: 14400 | D14: 8 | E14: 16 | F14: 32
C15: 19200 | D15: 6 | E15: 12 | F15: 24
C16: 38400 | D16: 3 | E16: 6 | F16: 12
C17: 57600 | D17: 2 | E17: 4 | F17: 8
C18: 115200 | D18: 1 | E18: 2 | F18: 4
C19: 230400 | D19: 0.5 | E19: 1 | F19: 2
C20: 460800 | D20: 0.25 | E20: 0.5 | F20: 1
D25: SIO Divisor
B26: Serial Clock | D26: 64 | E26: 32 | F26: 16
B27: 1843200 | D27: =$B27/D26 -> 28800 | E27: 57600 | F27: 115200
B28: Baud Rate | C28: 110 | D28: =D$27/$C28 -> 261.8181818 | E28: =E$27/$C28 -> 523.6363636 | F28: 1047.272727 | G28: CTC Divisor
C29: 300 | D29: =D$27/$C29 -> 96 | E29: 192 | F29: 384
C30: 600 | D30: 48 | E30: 96 | F30: 192
C31: 1200 | D31: 24 | E31: 48 | F31: 96
C32: 2400 | D32: 12 | E32: 24 | F32: 48
C33: 4800 | D33: 6 | E33: 12 | F33: 24
C34: 9600 | D34: 3 | E34: 6 | F34: 12
C35: 14400 | D35: 2 | E35: 4 | F35: 8
C36: 19200 | D36: 1.5 | E36: 3 | F36: 6
C37: 38400 | D37: 0.75 | E37: 1.5 | F37: 3
C38: 57600 | D38: 0.5 | E38: 1 | F38: 2
C39: 115200 | D39: 0.25 | E39: 0.5 | F39: 1
C40: 230400 | D40: 0.125 | E40: 0.25 | F40: 0.5
C41: 460800 | D41: 0.0625 | E41: 0.125 | F41: 0.25
D46: SIO Divisor
B47: Serial Clock | D47: 64 | E47: 32 | F47: 16
B48: 4915200 | D48: =$B48/D47 -> 76800 | E48: 153600 | F48: 307200
B49: Baud Rate | C49: 110 | D49: =D$48/$C49 -> 698.1818182 | E49: =E$48/$C49 -> 1396.363636 | F49: 2792.727273 | G49: CTC Divisor
C50: 300 | D50: =D$48/$C50 -> 256 | E50: 512 | F50: 1024
C51: 600 | D51: 128 | E51: 256 | F51: 512
C52: 1200 | D52: 64 | E52: 128 | F52: 256
C53: 2400 | D53: 32 | E53: 64 | F53: 128
C54: 4800 | D54: 16 | E54: 32 | F54: 64
C55: 9600 | D55: 8 | E55: 16 | F55: 32
C56: 14400 | D56: 5.333333333 | E56: 10.66666667 | F56: 21.33333333
C57: 19200 | D57: 4 | E57: 8 | F57: 16
C58: 38400 | D58: 2 | E58: 4 | F58: 8
C59: 57600 | D59: 1.333333333 | E59: 2.666666667 | F59: 5.333333333
C60: 115200 | D60: 0.6666666667 | E60: 1.333333333 | F60: 2.666666667
C61: 230400 | D61: 0.3333333333 | E61: 0.6666666667 | F61: 1.333333333
C62: 460800 | D62: 0.1666666667 | E62: 0.3333333333 | F62: 0.6666666667
